fUSD/lending_fUSD_20250421
["ID","MTS","AMOUNT","RATE_DAILY","PERIOD"]
[358570783,1745272238487,-206054.34292231,0.0002,2]
[358570784,1745272238499,-6350.0,0.0002,2]
[358570788,1745272240095,-314.1344609,0.00019986,2]
[358570789,1745272240106,-970.96391347,0.0002,2]
[358570790,1745272240130,-1307.7811373,0.0002,2]
[358570791,1745272240142,-265.58105001,0.0002,2]
[358570796,1745272242454,-258.55597429,0.0002,2]
[358570797,1745272242466,-1621.349066,0.0002,2]
[358570798,1745272242565,-865.07106499,0.0002,2]
[358570799,1745272242577,-1000.0,0.0002,2]
[358570809,1745272245447,-647.0,0.0002,2]
[358570810,1745272245456,-1203.0173712,0.0002,2]
[358570811,1745272245534,-1120.12,0.0002,2]
[358570813,1745272809055,-300.0,0.00019262,2]
[358570814,1745272837804,-290.38717263,0.00019262,2]
[358570815,1745272882033,-167.95652451,0.00019262,2]
[358570816,1745272926699,-152.0,0.00019162,2]
[358570817,1745273026908,-167.95652451,0.00019068,2]
[358570818,1745273042710,-291.66514255,0.00019067,2]
[358570819,1745273080033,1000.0,0.00018912,2]
[358570820,1745273087199,-8.33485745,0.00019067,2]
[358570821,1745273087223,-342.59973126,0.00019068,2]
[358570822,1745273101989,-276.59525574,0.00019067,2]
[358570823,1745273107025,421.33032667,0.00018867,2]
[358570824,1745273107566,-342.97705757,0.00019067,2]
[358570825,1745273109244,-152.0,0.00019067,2]
[358570826,1745273162512,-216.94101419,0.00019067,2]
[358570827,1745273181404,200.0,0.000189,2]
[358570828,1745273247869,1555.97,0.00016988,2]
[358570829,1745273248747,-152.0,0.00019067,2]
[358570830,1745273257288,250.0,0.00018893,7]
[358570831,1745273282660,-59.4866725,0.00019067,2]
[358570832,1745273282684,-223.09326226,0.00019067,2]
[358570833,1745273305432,153.2284,0.00018968,2]
[358570834,1745273314001,4703.14,0.00013699,2]
[358570835,1745273314343,1966.33127333,0.00013699,2]
[358570836,1745273314365,2736.80872667,0.00013699,2]
[358570837,1745273314641,4703.14,0.00013699,2]
[358570838,1745273315043,2560.05127333,0.00013699,2]
[358570839,1745273315065,2143.08872667,0.00013699,2]
[358570840,1745273315220,-76.90673774,0.00019067,2]
[358570841,1745273315243,-175.01541129,0.00019068,2]
[358570842,1745273315390,4703.14,0.00013699,2]
[358570843,1745273316303,3153.77127333,0.00013699,2]
[358570844,1745273316324,1549.36872667,0.00013699,2]
[358570845,1745273316676,4703.14,0.00013699,2]
[358570846,1745273316966,3747.49127333,0.00013699,2]
[358570847,1745273316988,955.64872667,0.00013699,2]
[358570848,1745273317662,4703.14,0.00013699,2]
[358570849,1745273318020,4341.21127333,0.00013699,2]
[358570850,1745273318042,361.92872667,0.00013699,2]
[358570851,1745273318358,4703.14,0.00013699,2]
[358570852,1745273318651,4703.14,0.00013699,2]
[358570853,1745273319513,231.79127333,0.00013699,2]
[358570854,1745273319536,4471.34872667,0.00013699,2]
[358570855,1745273320550,4703.14,0.00013699,2]
[358570856,1745273320955,825.51127333,0.00013699,2]
[358570857,1745273320978,3877.62872667,0.00013699,2]
[358570858,1745273321298,4703.14,0.00013699,2]
[358570859,1745273322204,1419.23127333,0.00013699,2]
[358570860,1745273322226,3283.90872667,0.00013699,2]
[358570861,1745273322642,4703.14,0.00013699,2]
[358570862,1745273323053,2012.95127333,0.00013699,2]
[358570863,1745273323077,2690.18872667,0.00013699,2]
[358570864,1745273323446,4703.20717183,0.00013699,2]
[358570865,1745273358639,250.0,0.00018892,2]
[358570866,1745273361404,2356.6041015,0.00018892,2]
[358570867,1745273361427,1189.1558985,0.00018892,2]
[358570868,1745273402313,2000.0,0.0002,4]
[358570869,1745273402442,-174.8443811,0.00019067,2]
[358570870,1745273408192,-247.33034386,0.00019067,2]
[358570882,1745273431534,-280.53,0.00019067,2]
[358570883,1745273431546,-497.29527504,0.00019067,2]
[358570884,1745273431556,-300.0,0.00019067,2]
[358570885,1745273431565,-300.0,0.00019067,2]
[358570886,1745273431575,-3831.24833294,0.00019068,2]
[358570887,1745273431585,-6839.87,0.00019068,2]
[358570888,1745273431594,-250.0,0.00019116,2]
[358570889,1745273431603,-1555.97,0.00019252,2]
[358570890,1745273431612,-3611.89630286,0.00019262,2]
[358570891,1745273431622,-138.69,0.00019262,2]
[358570892,1745273431631,-242.14,0.00019487,2]
[358570893,1745273431640,-500.0,0.00019487,2]
[358570894,1745273431650,-500.0,0.00019562,2]
[358570895,1745273431659,-419.81,0.00019568,2]
[358570896,1745273431668,-176.848,0.00019706,2]
[358570897,1745273431677,-2655.496,0.00019706,2]
[358570898,1745273431687,-466.43403689,0.00019706,2]
[358570899,1745273431696,-8909.09458397,0.00019707,2]
[358570900,1745273431715,-2111.50799,0.00019707,2]
[358570901,1745273431727,-289.89542101,0.00019707,2]
[358570902,1745273431738,-1220.46398211,0.00019707,2]
[358570903,1745273431798,-3075.0,0.00019707,2]
[358570904,1745273431809,-407.0,0.00019707,2]
[358570905,1745273431820,-7887.03802291,0.00019707,2]
[358570906,1745273431830,-9827.93,0.00019707,2]
[358570907,1745273431839,-200.0,0.00019707,2]
[358570908,1745273431848,-316.2942,0.00019786,2]
[358570909,1745273431857,-687.0463,0.000198,2]
[358570910,1745273431867,-1306.4914,0.000198,2]
[358570911,1745273431876,-6498.6784,0.000198,2]
[358570912,1745273431885,-2789.8857,0.000198,2]
[358570914,1745273431895,-2082.4709,0.000198,2]
[358570916,1745273431905,-500.0,0.00019873,2]
[358570917,1745273431914,-311.73011261,0.00019873,2]
[358570918,1745273431923,-503.82999379,0.00019873,2]
[358570919,1745273431932,-3981.96790809,0.0001988,2]
[358570920,1745273431942,-500.0,0.00019885,2]
[358570921,1745273431952,-500.0,0.00019885,2]
[358570924,1745273431961,-248.93609849,0.00019885,2]
[358570928,1745273431970,-500.0,0.00019885,2]
[358570932,1745273431980,-500.0,0.00019885,2]
[358570934,1745273431989,-544.93620431,0.00019885,2]
[358570937,1745273431998,-1405.5238,0.00019886,2]
[358570941,1745273432008,-578.0142,0.00019886,2]
[358570943,1745273432017,-8969.05141431,0.00019886,2]
[358570948,1745273432028,-1130.07678569,0.00019886,2]
[358570951,1745273432037,-2159.24227091,0.00019886,2]
[358570986,1745273437532,-180.06997504,0.00018972,2]
[358570987,1745273437694,-242.10474896,0.00018972,2]
[358570988,1745273437704,-687.0463,0.000198,2]
[358570989,1745273437714,-5770.21492966,0.000198,2]
[358570990,1745273437805,-468.40396298,0.000198,2]
[358570991,1745273437817,-5559.25206961,0.000198,2]
[358570992,1745273437829,-8916.57994639,0.000198,2]
[358570993,1745273437863,-6293.11979136,0.000198,2]
[358570994,1745273437872,-3757.31991156,0.00019886,2]
[358570995,1745273437885,-1942.4,0.00019886,2]
[358570996,1745273437942,-3167.16741753,0.00019886,2]
[358570997,1745273437952,-1000.0,0.00019886,2]
[358570998,1745273437963,-4423.3065,0.00019886,2]
[358570999,1745273437972,-896.7283,0.00019886,2]
[358571000,1745273437982,-17296.607,0.00019886,2]
[358571001,1745273437992,-500.0,0.00019886,2]
[358571002,1745273438003,-2500.0,0.00019886,2]
[358571003,1745273438013,-170.22702338,0.00019888,2]
[358571004,1745273438023,-500.0,0.0001989,2]
[358571005,1745273438033,-527.34047822,0.00019891,2]
[358571006,1745273438043,-527.34047822,0.00019892,2]
[358571007,1745273438053,-527.34047822,0.00019894,2]
[358571008,1745273438063,-527.34047822,0.00019895,2]
[358571009,1745273438074,-527.34047822,0.00019897,2]
[358571010,1745273438083,-527.34047822,0.00019898,2]
[358571011,1745273438093,-473.34782188,0.000199,2]
[358571012,1745273438102,-1437.6633,0.000199,2]
[358571013,1745273438112,-157.2867,0.000199,2]
[358571014,1745273438121,-1000.0,0.000199,2]
[358571015,1745273438131,-164.70128771,0.000199,2]
[358571016,1745273438140,-527.34047822,0.000199,2]
[358571017,1745273438151,-934.1242,0.000199,2]
[358571018,1745273438161,-236.12981965,0.000199,2]
[358571019,1745273438170,-3286.74302138,0.000199,2]
[358571020,1745273438180,-5586.15090314,0.000199,2]
[358571021,1745273438190,-1448.63322892,0.000199,2]
[358571022,1745273438200,-977.26547304,0.000199,2]
[358571024,1745273438209,-500.0,0.00019973,2]
[358571025,1745273438219,-2583.0,0.00019973,2]
[358571026,1745273438228,-500.0,0.00019973,2]
[358571027,1745273438238,-643.34112161,0.00019973,2]
[358571028,1745273438248,-520.06263033,0.00019973,2]
[358571029,1745273438257,-500.0,0.00019973,2]
[358571030,1745273438266,-211.08872435,0.00019973,2]
[358571031,1745273438277,-1662.13,0.00019973,2]
[358571032,1745273438286,-207.4,0.00019974,2]
[358571033,1745273438296,-151.0,0.00019974,2]
[358571034,1745273438305,-151.0,0.00019974,2]
[358571035,1745273438314,-151.0,0.00019974,2]
[358571036,1745273438323,-151.0,0.00019974,2]
[358571037,1745273438333,-151.0,0.00019974,2]
[358571038,1745273438342,-151.0,0.00019974,2]
[358571039,1745273438351,-151.0,0.00019974,2]
[358571040,1745273438362,-151.0,0.00019974,2]
[358571041,1745273438373,-151.0,0.00019974,2]
[358571042,1745273438383,-151.0,0.00019974,2]
[358571043,1745273438393,-151.0,0.00019974,2]
[358571044,1745273438402,-151.0,0.00019974,2]
[358571045,1745273438411,-151.0,0.00019974,2]
[358571046,1745273438420,-151.0,0.00019974,2]
[358571047,1745273438430,-151.0,0.00019974,2]
[358571048,1745273438439,-151.0,0.00019974,2]
[358571049,1745273438449,-151.0,0.00019974,2]
[358571050,1745273438458,-151.0,0.00019974,2]
[358571051,1745273438467,-151.0,0.00019974,2]
[358571052,1745273438477,-302.0,0.00019974,2]
[358571053,1745273438486,-6472.2,0.00019976,2]
[358571054,1745273438495,-5539.3641797,0.00019986,2]
[358571055,1745273438505,-35483.6474423,0.00019986,2]
[358571056,1745273438514,-1122.988916,0.00019986,2]
[358571057,1745273438523,-13762.2255248,0.00019986,2]
[358571058,1745273438533,-2446.2608132,0.00019986,2]
[358571059,1745273438542,-6583.8488769,0.00019986,2]
[358571060,1745273438552,-1164.0260997,0.00019986,2]
[358571061,1745273438561,-43065.148789,0.00019986,2]
[358571062,1745273438570,-3466.1855005,0.00019986,2]
[358571063,1745273438579,-9024.5667818,0.00019986,2]
[358571064,1745273438588,-269.27020522,0.00019988,2]
[358571065,1745273438597,-300.0,0.00019999,2]
[358571066,1745273438607,-500.0,0.00019999,2]
[358571067,1745273438616,-500.0,0.00019999,2]
[358571068,1745273438626,-219.85510616,0.00019999,2]
[358571069,1745273438635,-300.0,0.00019999,2]
[358571070,1745273438644,-500.0,0.00019999,2]
[358571071,1745273438654,-500.0,0.00019999,2]
[358571072,1745273438663,-661.0,0.0002,2]
[358571073,1745273438672,-1615094.75288802,0.0002,2]
[358571074,1745273438684,-2955771.08740354,0.0002,2]
[358571075,1745273438695,-822.49017547,0.0002,2]
[358571076,1745273438799,-8695.33159424,0.0002,2]
[358571100,1745273439777,-1244611.86313602,0.0002,2]
[358571122,1745273440007,-0.00816922,0.0002,2]
[358571129,1745273440076,-1500.0,0.0002,2]
[358571236,1745273447309,-904322.22723271,0.0002,2]
[358571237,1745273447319,-1000.0,0.0002,2]
[358571238,1745273447328,-785.58313783,0.0002,2]
[358571239,1745273447337,-200.0,0.0002,2]
[358571240,1745273447346,-200.0,0.0002,2]
[358571241,1745273447357,-257.0,0.00020082,2]
[358571242,1745273447366,-500.0,0.0002011,2]
[358571243,1745273447379,-200.0,0.000202,2]
[358571244,1745273447388,-200.0,0.000202,2]
[358571245,1745273447398,-500.0,0.00020329,2]
[358571246,1745273447407,-200.0,0.00020402,2]
[358571247,1745273447417,-1987.75,0.00020562,2]
[358571248,1745273447426,-200.0,0.00020606,2]
[358571249,1745273447436,-522.0,0.00020658,2]
[358571250,1745273447447,-420.0,0.00020781,2]
[358571251,1745273447457,-1680.0,0.00020882,2]
[358571252,1745273447467,-250.0,0.00020974,2]
[358571253,1745273447476,-250.0,0.00020974,2]
[358571254,1745273447486,-250.0,0.00021,2]
[358571255,1745273447495,-1000.0,0.00021276,2]
[358571256,1745273447505,-215.0738,0.00021343,2]
[358571257,1745273447515,-1555.97,0.00021515,2]
[358571258,1745273447524,-151.36,0.0002162,2]
[358571259,1745273447533,-11334.1,0.00021681,2]
[358571260,1745273447543,-150.0,0.0002178,2]
[358571261,1745273447553,-150.0,0.00021879,2]
[358571262,1745273447563,-304.04,0.00022,2]
[358571263,1745273447572,-305.5,0.00022,2]
[358571264,1745273447581,-3651.83,0.00022,2]
[358571265,1745273447590,-500.0,0.00022473,2]
[358571266,1745273447599,-628.10016536,0.00022473,2]
[358571267,1745273447608,-231.4518421,0.00022499,2]
[358571268,1745273447617,-500.0,0.00022499,2]
[358571269,1745273447626,-500.0,0.00022499,2]
[358571270,1745273447636,-500.0,0.00022499,2]
[358571271,1745273447645,-94968.33011776,0.000225,2]
[358571272,1745273447654,-587.0,0.0002265,2]
[358571273,1745273447663,-223.0315306,0.00022712,2]
[358571274,1745273447672,-2351.0,0.0002287,2]
[358571275,1745273447682,-23192.97323193,0.00023,2]
[358571276,1745273447692,-300.0,0.00023,2]
[358571277,1745273447702,-282.96802018,0.00023,2]
[358571278,1745273447712,-1094.0,0.000234,2]
[358571279,1745273447721,-1000.0,0.00023641,2]
[358571280,1745273447731,-1555.97,0.00023779,2]
[358571281,1745273447740,-151.36,0.00023782,2]
[358571282,1745273447750,-402.36,0.00023836,2]
[358571283,1745273447760,-9859.33669008,0.00024,14]
[358571284,1745273447769,-231.28369723,0.00024081,2]
[358571285,1745273447778,-473.34782185,0.00024421,2]
[358571286,1745273447787,-823.0,0.00024687,2]
[358571287,1745273447797,-549.56582916,0.0002477,2]
[358571288,1745273447806,-500.0,0.00024799,2]
[358571289,1745273447815,-151.0,0.00024899,2]
[358571290,1745273447824,-500.0,0.00024899,2]
[358571291,1745273447834,-500.0,0.00024899,2]
[358571292,1745273447843,-540677.17178,0.000249,2]
[358571293,1745273447852,-350.0,0.00025,2]
[358571294,1745273447862,-3292.0,0.00025048,2]
[358571295,1745273447871,-947.11,0.00025396,2]
[358571296,1745273447880,-816.457,0.00025396,2]
[358571297,1745273447890,-1283.0,0.00025396,2]
[358571298,1745273447899,-546.0,0.00025396,2]
[358571299,1745273447909,-908.0,0.00025396,2]
[358571300,1745273447918,-1442.0,0.00025396,2]
[358571301,1745273447927,-4161.0,0.00025396,2]
[358571302,1745273447936,-577.0,0.00025396,2]
[358571303,1745273447946,-2142.0,0.00025396,2]
[358571304,1745273447955,-3978.0,0.00025396,2]
[358571305,1745273447965,-191.034,0.00025396,2]
[358571306,1745273447976,-160.172,0.00025396,2]
[358571307,1745273447985,-868.0,0.00025396,2]
[358571308,1745273447995,-1129.0,0.00025396,2]
[358571309,1745273448004,-239.84119403,0.0002545,2]
[358571310,1745273448014,-1000.0,0.00025452,2]
[358571311,1745273448023,-3885.3,0.00025786,2]
[358571312,1745273448033,-151.36,0.00025944,2]
[358571313,1745273448042,-1000.0,0.00026005,2]
[358571314,1745273448052,-1555.97,0.00026043,2]
[358571315,1745273448062,-5849.89170393,0.00026062,2]
[358571316,1745273448072,-3651.83,0.000261,2]
[358571317,1745273448082,-248.71531821,0.00026819,2]
[358571318,1745273448091,-1152.0,0.00026907,2]
[358571319,1745273448102,-400.0,0.00027,2]
[358571320,1745273448111,-197.0,0.00027314,2]
[358571321,1745273448121,-152.0,0.00027314,2]
[358571322,1745273448130,-150.0,0.00027314,2]
[358571323,1745273448139,-1332.0,0.00027314,2]
[358571324,1745273448148,-2055.0,0.00027314,2]
[358571325,1745273448158,-419.81,0.00027395,2]
[358571326,1745273448168,-213.98,0.00027397,2]
[358571327,1745273448178,-365.35,0.00027397,2]
[358571328,1745273448189,-154.2,0.00027397,2]
[358571329,1745273448200,-4609.0,0.00027433,2]
[358571330,1745273448211,-893.22351403,0.00027952,5]
[358571331,1745273448223,-151.36,0.00028106,2]
[358571332,1745273448234,-257.91778498,0.00028188,2]
[358571333,1745273448244,-1555.97,0.00028307,2]
[358571334,1745273448253,-1000.0,0.00028369,2]
[358571335,1745273448264,-154.2,0.00028376,2]
[358571336,1745273448274,-916.0,0.00028396,2]
[358571337,1745273448285,-795.0,0.00028396,2]
[358571338,1745273448295,-1283.0,0.00028396,2]
[358571339,1745273448306,-546.0,0.00028396,2]
[358571340,1745273448315,-908.0,0.00028396,2]
[358571341,1745273448324,-1442.0,0.00028396,2]
[358571342,1745273448335,-4161.0,0.00028396,2]
[358571343,1745273448344,-577.0,0.00028396,2]
[358571344,1745273448355,-2142.0,0.00028396,2]
[358571345,1745273448364,-3978.0,0.00028396,2]
[358571346,1745273448377,-152.0,0.00028396,2]
[358571347,1745273448386,-152.0,0.00028396,2]
[358571348,1745273448396,-868.0,0.00028396,2]
[358571349,1745273448406,-1113.0,0.00028396,2]
[358571350,1745273448416,-365.35,0.00028767,2]
[358571351,1745273448426,-222.0,0.000288,2]
[358571352,1745273448436,-473.34782185,0.00028941,2]
[358571353,1745273448446,-70329.10316133,0.00029,2]
[358571354,1745273448456,-235.0,0.00029,2]
[358571355,1745273448466,-450.0,0.00029,2]
[358571356,1745273448477,-1613.0,0.00029326,2]
[358571357,1745273448487,-154.2,0.00029354,2]
[358571358,1745273448497,-267.46074303,0.00029557,2]
[358571359,1745273448507,-500.0,0.00029644,2]
[358571360,1745273448516,-222.0,0.0002987,2]
[358571361,1745273448526,-959.00322913,0.0003,2]
[358571362,1745273448535,-3651.83,0.0003,2]
[358571363,1745273448545,-213.0,0.0003,2]
[358571364,1745273448555,-151.79,0.0003,2]
[358571365,1745273448564,-151.79,0.0003,2]
[358571366,1745273448574,-151.79,0.0003,2]
[358571367,1745273448583,-151.79,0.0003,2]
[358571368,1745273448593,-151.79,0.0003,2]
[358571369,1745273448602,-151.79,0.0003,2]
[358571370,1745273448612,-151.79,0.0003,2]
[358571371,1745273448622,-151.79,0.0003,2]
[358571372,1745273448631,-151.79,0.0003,2]
[358571373,1745273448640,-151.79,0.0003,2]
[358571374,1745273448650,-151.79,0.0003,2]
[358571375,1745273448659,-151.79,0.0003,2]
[358571376,1745273448668,-151.79,0.0003,2]
[358571377,1745273448678,-151.79,0.0003,2]
[358571378,1745273448687,-151.79,0.0003,2]
[358571379,1745273448696,-151.79,0.0003,2]
[358571380,1745273448706,-6453.0,0.00030045,2]
[358571381,1745273448715,-798.76,0.0003011,2]
[358571382,1745273448725,-610.0,0.00030137,2]
[358571383,1745273448735,-365.35,0.00030137,2]
[358571384,1745273448744,-151.36,0.00030268,2]
[358571385,1745273448753,-150.0,0.00030314,2]
[358571386,1745273448762,-1332.0,0.00030314,2]
[358571387,1745273448771,-2055.0,0.00030314,2]
[358571388,1745273448780,-154.2,0.00030333,2]
[358571389,1745273448789,-213.98,0.00030528,2]
[358571390,1745273448798,-1555.97,0.00030571,2]
[358571391,1745273448808,-500.0,0.00030699,2]
[358571392,1745273448817,-500.0,0.00030699,2]
[358571393,1745273448827,-500.0,0.00030699,2]
[358571394,1745273448836,-13351.7416348,0.000307,9]
[358571395,1745273448846,-13351.74163476,0.000307,9]
[358571396,1745273448855,-13351.74163476,0.000307,9]
[358571397,1745273448865,-13351.74163476,0.000307,9]
[358571398,1745273448875,-13351.74163476,0.000307,9]
[358571399,1745273448884,-13351.74163476,0.000307,9]
[358571400,1745273448894,-13351.74163476,0.000307,9]
[358571401,1745273448903,-13351.74163476,0.000307,9]
[358571402,1745273448912,-13351.74163476,0.000307,9]
[358571403,1745273448922,-277.35679052,0.00030926,2]
[358571404,1745273448931,-222.0,0.0003093,2]
[358571405,1745273448940,-500.0,0.00031,2]
[358571406,1745273448950,-154.2,0.00031311,2]
[358571407,1745273448959,-916.0,0.00031396,2]
[358571408,1745273448968,-795.0,0.00031396,2]
[358571409,1745273448978,-1283.0,0.00031396,2]
[358571410,1745273448988,-546.0,0.00031396,2]
[358571411,1745273448997,-908.0,0.00031396,2]
[358571412,1745273449007,-1442.0,0.00031396,2]
[358571413,1745273449017,-4161.0,0.00031396,2]
[358571414,1745273449027,-577.0,0.00031396,2]
[358571415,1745273449036,-2142.0,0.00031396,2]
[358571416,1745273449046,-2015.745,0.00031396,2]
[358571417,1745273449055,-152.0,0.00031396,2]
[358571418,1745273449066,-152.0,0.00031396,2]
[358571419,1745273449076,-868.0,0.00031396,2]
[358571420,1745273449086,-13351.74163476,0.00031452,10]
[358571421,1745273449096,-208.54,0.00031459,14]
[358571422,1745273449106,-222.42,0.00031459,14]
[358571423,1745273449116,-365.35,0.00031507,2]
[358571424,1745273449126,-500.0,0.00031507,2]
[358571425,1745273449135,-2258.0,0.00031964,3]
[358571426,1745273449145,-1506.39405634,0.00032,2]
[358571427,1745273449155,-222.0,0.00032,2]
[358571428,1745273449165,-600.0,0.000321,2]
[358571429,1745273449176,-337.81645263,0.000321,2]
[358571430,1745273449185,-154.2,0.0003229,2]
[358571431,1745273449195,-287.61899177,0.00032295,2]
[358571432,1745273449204,-288.85,0.000323,2]
[358571433,1745273449214,-288.85,0.00032333,2]
[358571434,1745273449224,-288.85,0.00032367,2]
[358571435,1745273449234,-288.86,0.000324,2]
[358571436,1745273449243,-151.36,0.0003243,2]
[358571437,1745273449252,-13351.74163476,0.00032624,10]
[358571438,1745273449262,-3651.83,0.000327,2]
[358571439,1745273449271,-1555.97,0.00032835,2]
[358571440,1745273449282,-170.41,0.00032877,2]
[358571441,1745273449459,-163.8,0.00032877,30]
[358571442,1745273449469,-1500.0,0.00032877,120]
[358571443,1745273449479,-365.35,0.00032877,2]
[358571444,1745273449488,-331.28,0.00032877,2]
[358571445,1745273449498,-476.24,0.00032904,30]
[358571446,1745273449508,-9035.0,0.00032906,3]
[358571447,1745273449518,-550.0,0.00033,2]
[358571448,1745273449527,-213.0,0.00033,2]
[358571449,1745273449536,-222.0,0.0003307,2]
[358571450,1745273449546,-216.44855978,0.000331,2]
[358571451,1745273449555,-154.2,0.00033268,2]
[358571452,1745273449564,-1332.0,0.00033314,2]
[358571453,1745273449574,-2055.0,0.00033314,2]
[358571454,1745273449583,-473.34782185,0.00033462,2]
[358571455,1745273449593,-1168.29214865,0.000335,2]
[358571456,1745273449602,-793.45,0.00033565,2]
[358571457,1745273449611,-213.98,0.0003366,2]
[358571458,1745273449621,-298.26089446,0.00033664,2]
[358571459,1745273449630,-236.12981963,0.00033772,2]
[358571460,1745273449640,-5586.15090313,0.00033772,2]
[358571461,1745273449649,-1448.63322892,0.00033772,2]
[358571462,1745273449663,-13351.74163476,0.00033797,11]
[358571463,1745273449672,-222.0,0.0003413,2]
[358571464,1745273449682,-154.2,0.00034247,2]
[358571465,1745273449691,-916.0,0.00034396,2]
[358571466,1745273449701,-795.0,0.00034396,2]
[358571467,1745273449710,-1283.0,0.00034396,2]
[358571468,1745273449719,-546.0,0.00034396,2]
[358571469,1745273449729,-908.0,0.00034396,2]
[358571470,1745273449738,-1442.0,0.00034396,2]
[358571471,1745273449747,-4161.0,0.00034396,2]
[358571472,1745273449756,-577.0,0.00034396,2]
[358571473,1745273449766,-2142.0,0.00034396,2]
[358571474,1745273449775,-152.0,0.00034396,2]
[358571475,1745273449783,-152.0,0.00034396,2]
[358571476,1745273449791,-868.0,0.00034396,2]
[358571477,1745273449803,-150.0,0.00034548,10]
[358571478,1745273449813,-3162.0,0.00034838,3]
[358571479,1745273449822,-835.70981483,0.0003489,14]
[358571480,1745273449832,-13351.74163476,0.00034969,12]
[358571481,1745273449841,-227.53847061,0.00035,2]
[358571482,1745273449850,-600.0,0.00035,2]
[358571483,1745273449860,-309.29654756,0.00035033,2]
[358571484,1745273449870,-402.36,0.00035068,2]
[358571485,1745273449879,-1555.97,0.00035099,2]
[358571486,1745273449893,-222.0,0.000352,2]
[358571487,1745273449903,-154.2,0.00035225,2]
[358571488,1745273449912,-184.0,0.00035236,7]
[358571489,1745273449922,-3651.83,0.000353,14]
[358571490,1745273449931,-520.94346662,0.00035471,5]
[358571491,1745273449941,-500.0,0.00035616,2]
[358571492,1745273449951,-500.0,0.00035616,2]
[358571493,1745273449960,-500.0,0.00035616,2]
[358571494,1745273449970,-500.0,0.00035616,2]
[358571495,1745273449979,-150.0,0.00035616,2]
[358571496,1745273449989,-150.0,0.00035616,2]
[358571497,1745273449999,-500.0,0.00035616,2]
[358571498,1745273450008,-250.0,0.00035616,2]
[358571499,1745273450018,-150.0,0.00035616,2]
[358571500,1745273450028,-250.0,0.00035616,2]
[358571501,1745273450038,-150.0,0.00035616,5]
[358571502,1745273450047,-1000.0,0.00035616,2]
[358571503,1745273450057,-500.0,0.00035671,2]
[358571504,1745273450067,-500.0,0.00035671,2]
[358571505,1745273450077,-500.0,0.00035671,2]
[358571506,1745273450087,-500.0,0.00035671,2]
[358571507,1745273450096,-150.0,0.00035671,2]
[358571508,1745273450107,-150.0,0.00035671,2]
[358571509,1745273450117,-610.28831672,0.00035671,2]
[358571510,1745273450127,-150.0,0.00035671,2]
[358571511,1745273450137,-500.0,0.00035726,2]
[358571512,1745273450147,-500.0,0.00035726,2]
[358571513,1745273450157,-500.0,0.00035726,2]
[358571514,1745273450167,-500.0,0.00035726,2]
[358571515,1745273450176,-200.0,0.00035726,2]
[358571516,1745273450186,-150.0,0.00035726,2]
[358571517,1745273450196,-500.0,0.0003578,2]
[358571518,1745273450205,-500.0,0.0003578,2]
[358571519,1745273450215,-232.0,0.0003578,2]
[358571520,1745273450224,-500.0,0.0003578,2]
[358571521,1745273450234,-244.0,0.0003578,2]
[358571522,1745273450244,-500.0,0.00035835,2]
[358571523,1745273450253,-500.0,0.00035835,2]
[358571524,1745273450263,-500.0,0.0003589,2]